fUST/lending_fUST_20250912
["ID","MTS","AMOUNT","RATE_DAILY","PERIOD"]
[385060838,1757658647413,-26035.5064577,0.00013817,2]
[385060840,1757658647423,-151.0,0.00013817,2]
[385060842,1757658647432,-151.0,0.00013817,2]
[385060844,1757658647441,-152.265429,0.00013817,2]
[385060846,1757658647455,-151.0,0.00013817,2]
[385060848,1757658647465,-205.932548,0.00013817,2]
[385060850,1757658647475,-153.033488,0.00013817,2]
[385060852,1757658647484,-151.284692,0.00013817,2]
[385060854,1757658647494,-151.813088,0.00013817,2]
[385060856,1757658647503,-151.0,0.00013817,2]
[385060858,1757658647512,-292.295671,0.00013817,2]
[385060860,1757658647522,-154.012458,0.00013817,2]
[385060862,1757658647532,-154.012458,0.00013817,2]
[385060864,1757658647541,-154.012458,0.00013817,2]
[385060866,1757658647551,-154.012458,0.00013817,2]
[385060868,1757658647560,-151.0,0.00013817,2]
[385060870,1757658647569,-151.0,0.00013817,2]
[385060872,1757658647579,-1059.27,0.00013817,2]
[385060874,1757658647588,-1059.27,0.00013817,2]
[385060876,1757658647598,-1059.27,0.00013817,2]
[385060878,1757658647608,-216.081,0.00013818,2]
[385060880,1757658647617,-151.0,0.00013818,2]
[385060882,1757658647626,-151.0,0.00013818,2]
[385060884,1757658647635,-151.0,0.00013818,2]
[385060886,1757658647644,-192.983643,0.00013818,2]
[385060888,1757658647654,-154.012458,0.00013818,2]
[385060890,1757658647664,-154.012458,0.00013818,2]
[385060892,1757658647673,-154.012458,0.00013818,2]
[385060894,1757658647683,-154.012458,0.00013818,2]
[385060896,1757658647692,-1059.27,0.00013818,2]
[385060898,1757658647702,-151.0,0.00013819,2]
[385060900,1757658647711,-151.0,0.00013819,2]
[385060902,1757658647721,-151.0,0.00013819,2]
[385060904,1757658647730,-157.0,0.00013819,2]
[385060906,1757658647739,-154.012458,0.00013819,2]
[385060908,1757658647748,-154.012458,0.00013819,2]
[385060910,1757658647757,-154.012458,0.00013819,2]
[385060912,1757658647766,-154.012465,0.00013819,2]
[385060914,1757658647775,-157.0,0.00013819,2]
[385060916,1757658647784,-157.0,0.00013819,2]
[385060918,1757658647793,-157.0,0.00013819,2]
[385060920,1757658647802,-157.0,0.00013819,2]
[385060922,1757658647811,-500.0,0.00013819,2]
[385060924,1757658647820,-157.0,0.00013819,2]
[385060926,1757658647829,-500.0,0.00013819,2]
[385060928,1757658647838,-157.0,0.00013819,2]
[385060930,1757658647847,-157.11565503,0.00013819,2]
[385060932,1757658647856,-500.0,0.00013819,2]
[385060934,1757658647866,-157.0,0.00013819,2]
[385060936,1757658647875,-157.0,0.00013819,2]
[385060938,1757658647884,-248.97963686,0.00013819,2]
[385060940,1757658647894,-276.32145308,0.00013819,2]
[385060942,1757658647903,-500.0,0.00013819,2]
[385060944,1757658647913,-157.0,0.00013819,2]
[385060946,1757658647922,-157.0,0.00013819,2]
[385060948,1757658647931,-157.0,0.00013819,2]
[385060950,1757658647941,-157.0,0.00013819,2]
[385060952,1757658647950,-157.0,0.00013819,2]
[385060954,1757658647960,-157.0,0.00013819,2]
[385060956,1757658647970,-182.20621308,0.00013873,2]
[385060958,1757658647979,-500.0,0.00013873,2]
[385060960,1757658647988,-500.0,0.00013873,2]
[385060962,1757658647998,-500.0,0.00013873,2]
[385060965,1757658648009,-161.02447822,0.00013873,2]
[385060967,1757658648018,-500.0,0.00013873,2]
[385060969,1757658648027,-500.0,0.00013873,2]
[385060971,1757658648037,-500.40294221,0.00013873,2]
[385060973,1757658648047,-158.91104472,0.00013873,2]
[385060975,1757658648056,-500.43853504,0.00013873,2]
[385060977,1757658648065,-500.0,0.00013873,2]
[385060979,1757658648075,-501.43906007,0.00013873,2]
[385060981,1757658648084,-500.0,0.00013873,2]
[385060983,1757658648094,-500.0,0.00013873,2]
[385060985,1757658648104,-501.21061556,0.00013873,2]
[385060987,1757658648113,-340.83417394,0.00013873,2]
[385060989,1757658648122,-500.0,0.00013873,2]
[385060991,1757658648132,-500.59663046,0.00013873,2]
[385060993,1757658648143,-519.30030214,0.00013873,2]
[385060994,1757658648152,-228.23987367,0.00013873,2]
[385060996,1757658648162,-523.57965948,0.00013873,2]
[385060998,1757658648171,-500.0,0.00013873,2]
[385061000,1757658648185,-500.0,0.00013873,2]
[385061002,1757658648195,-500.0,0.00013873,2]
[385061004,1757658648205,-2176.36067139,0.00013936,2]
[385061006,1757658648214,-480.0,0.00013988,2]
[385061008,1757658648223,-480.0,0.00013988,2]
[385061010,1757658648233,-480.0,0.00013988,2]
[385061012,1757658648243,-572.75,0.00013988,2]
[385061014,1757658648253,-489.81829953,0.00013988,2]
[385061016,1757658648262,-491.27780176,0.00013988,2]
[385061018,1757658648272,-480.0,0.00013988,2]
[385061020,1757658648281,-500.0,0.00013989,2]
[385061022,1757658648290,-480.0,0.00013989,2]
[385061024,1757658648299,-480.0,0.00013989,2]
[385061026,1757658648308,-480.0,0.00013989,2]
[385061028,1757658648317,-480.0,0.00013989,2]
[385061030,1757658648326,-480.0,0.00013989,2]
[385061032,1757658648335,-919.38,0.00013989,2]
[385061034,1757658648345,-757.67,0.00013989,2]
[385061036,1757658648355,-480.0,0.00013989,2]
[385061038,1757658648364,-480.0,0.00013989,2]
[385061040,1757658648374,-480.0,0.00013989,2]
[385061042,1757658648383,-480.0,0.00013989,2]
[385061044,1757658648393,-480.0,0.00013989,2]
[385061046,1757658648402,-480.0,0.00013989,2]
[385061048,1757658648412,-480.0,0.00013989,2]
[385061050,1757658648421,-480.0,0.00013989,2]
[385061052,1757658648431,-480.0,0.00013989,2]
[385061054,1757658648440,-480.0,0.00013989,2]
[385061055,1757658648453,-480.0,0.00013989,2]
[385061057,1757658648463,-3212.40309491,0.0001399,2]
[385061059,1757658648473,-151.0,0.00014,2]
[385061061,1757658648482,-500.85609696,0.00014073,2]
[385061063,1757658648493,-500.0,0.00014073,2]
[385061065,1757658648503,-500.0,0.00014073,2]
[385061067,1757658648512,-500.65305912,0.00014073,2]
[385061069,1757658648522,-500.0,0.00014073,2]
[385061071,1757658648533,-500.0,0.00014073,2]
[385061073,1757658648542,-500.44709676,0.00014073,2]
[385061075,1757658648551,-500.0,0.00014073,2]
[385061077,1757658648561,-500.97527543,0.00014073,2]
[385061079,1757658648570,-500.27326538,0.00014073,2]
[385061081,1757658648580,-500.0,0.00014073,2]
[385061083,1757658648590,-322.95752596,0.00014073,2]
[385061085,1757658648599,-500.0,0.00014073,2]
[385061087,1757658648609,-500.34681271,0.00014073,2]
[385061089,1757658648618,-501.3793714,0.00014073,2]
[385061091,1757658648627,-502.51089403,0.00014073,2]
[385061093,1757658648638,-500.0,0.00014073,2]
[385061102,1757658648719,-260.16714718,0.00014073,2]
[385061104,1757658648730,-376.01537074,0.00014082,2]
[385061106,1757658648740,-151.0,0.00014082,2]
[385061108,1757658648752,-151.0,0.00014082,2]
[385061110,1757658648761,-151.0,0.00014082,2]
[385061112,1757658648772,-817.4,0.00014088,2]
[385061114,1757658648781,-480.0,0.00014088,2]
[385061116,1757658648791,-480.0,0.00014088,2]
[385061118,1757658648800,-480.0,0.00014088,2]
[385061120,1757658648810,-480.0,0.00014088,2]
[385061122,1757658648820,-480.0,0.00014088,2]
[385061124,1757658648829,-616.21,0.00014088,2]
[385061126,1757658648838,-487.57658633,0.00014088,2]
[385061128,1757658648848,-480.0,0.00014088,2]
[385061130,1757658648857,-544.17835925,0.00014088,2]
[385061132,1757658648866,-495.46673766,0.00014088,2]
[385061134,1757658648876,-492.20820192,0.00014088,2]
[385061136,1757658648886,-480.0,0.00014089,2]
[385061138,1757658648896,-151.0,0.00014089,2]
[385061140,1757658648905,-151.0,0.00014089,2]
[385061142,1757658648914,-151.0,0.00014089,2]
[385061144,1757658648924,-480.0,0.00014089,2]
[385061146,1757658648933,-497.91640254,0.00014089,2]
[385061148,1757658648943,-181.02,0.00014089,2]
[385061150,1757658648952,-240.4185378,0.00014089,2]
[385061152,1757658648962,-490.57569353,0.00014089,2]
[385061154,1757658648971,-480.0,0.00014089,2]
[385061156,1757658648980,-480.0,0.00014089,2]
[385061158,1757658648989,-480.0,0.00014089,2]
[385061160,1757658648998,-480.0,0.00014089,2]
[385061162,1757658649007,-480.0,0.00014089,2]
[385061164,1757658649017,-480.0,0.00014089,2]
[385061165,1757658649028,-480.0,0.00014089,2]
[385061167,1757658649038,-445.27966066,0.00014089,2]
[385061169,1757658649047,-480.0,0.00014089,2]
[385061171,1757658649056,-480.0,0.00014089,2]
[385061173,1757658649066,-480.0,0.00014089,2]
[385061175,1757658649075,-480.0,0.00014089,2]
[385061177,1757658649084,-480.0,0.00014089,2]
[385061179,1757658649098,-480.0,0.00014089,2]
[385061181,1757658649107,-480.0,0.00014089,2]
[385061183,1757658649117,-483.84355051,0.00014089,2]
[385061185,1757658649126,-480.0,0.00014089,2]
[385061186,1757658649143,-480.0,0.00014089,2]
[385061188,1757658649153,-480.0,0.00014089,2]
[385061190,1757658649163,-480.0,0.00014089,2]
[385061192,1757658649172,-480.0,0.00014089,2]
[385061194,1757658649182,-480.0,0.00014089,2]
[385061196,1757658649191,-482.67057599,0.00014089,2]
[385061198,1757658649200,-480.0,0.00014089,2]
[385061200,1757658649209,-480.0,0.00014089,2]
[385061202,1757658649218,-497.63353495,0.00014089,2]
[385061204,1757658649228,-294.29643247,0.00014089,2]
[385061206,1757658649237,-480.0,0.00014089,2]
[385061208,1757658649247,-487.74190289,0.00014089,2]
[385061210,1757658649256,-480.0,0.00014089,2]
[385061212,1757658649265,-496.47208194,0.00014089,2]
[385061214,1757658649274,-480.0,0.00014089,2]
[385061216,1757658649284,-480.0,0.00014089,2]
[385061218,1757658649293,-480.0,0.00014089,2]
[385061220,1757658649302,-480.0,0.00014089,2]
[385061222,1757658649311,-480.0,0.00014089,2]
[385061224,1757658649320,-480.0,0.00014089,2]
[385061226,1757658649329,-480.0,0.00014089,2]
[385061228,1757658649338,-480.0,0.00014089,2]
[385061229,1757658649348,-480.0,0.00014089,2]
[385061231,1757658649359,-480.0,0.00014089,2]
[385061233,1757658649368,-486.02893572,0.00014089,2]
[385061235,1757658649378,-480.0,0.00014089,2]
[385061237,1757658649388,-480.0,0.00014089,2]
[385061239,1757658649397,-487.60965408,0.00014089,2]
[385061241,1757658649407,-485.59995779,0.00014089,2]
[385061243,1757658649417,-480.0,0.00014089,2]
[385061245,1757658649428,-480.0,0.00014089,2]
[385061247,1757658649438,-480.0,0.00014089,2]
[385061249,1757658649456,-480.0,0.00014089,2]
[385061251,1757658649465,-480.0,0.00014089,2]
[385061253,1757658649474,-525.27899166,0.00014089,2]
[385061255,1757658649483,-480.0,0.00014089,2]
[385061257,1757658649492,-480.0,0.00014089,2]
[385061259,1757658649502,-548.83373958,0.00014089,2]
[385061261,1757658649512,-485.5945607,0.00014089,2]
[385061263,1757658649521,-480.0,0.00014089,2]
[385061265,1757658649532,-489.58326246,0.00014089,2]
[385061267,1757658649541,-480.0,0.00014089,2]
[385061269,1757658649550,-487.62795266,0.00014089,2]
[385061271,1757658649559,-1059.27,0.00014089,2]
[385061273,1757658649568,-480.0,0.00014089,2]
[385061275,1757658649577,-480.0,0.00014089,2]
[385061277,1757658649587,-496.27021635,0.00014089,2]
[385061279,1757658649596,-2541.09,0.00014089,2]
[385061281,1757658649605,-480.0,0.00014089,2]
[385061282,1757658649613,-480.0,0.00014089,2]
[385061284,1757658649622,-612.02,0.00014089,2]
[385061286,1757658649631,-480.0,0.00014089,2]
[385061288,1757658649639,-480.0,0.00014089,2]
[385061290,1757658649648,-480.0,0.00014089,2]
[385061292,1757658649657,-480.0,0.00014089,2]
[385061294,1757658649666,-480.0,0.00014089,2]
[385061296,1757658649675,-480.0,0.00014089,2]
[385061298,1757658649684,-480.0,0.00014089,2]
[385061300,1757658649693,-480.0,0.00014089,2]
[385061302,1757658649701,-485.52357964,0.00014089,2]
[385061304,1757658649710,-554.62,0.00014089,2]
[385061306,1757658649720,-480.0,0.00014089,2]
[385061308,1757658649729,-480.0,0.00014089,2]
[385061310,1757658649738,-480.0,0.00014089,2]
[385061312,1757658649747,-486.45043996,0.00014089,2]
[385061314,1757658649756,-480.0,0.00014089,2]
[385061315,1757658649765,-480.0,0.00014089,2]
[385061317,1757658649774,-480.0,0.00014089,2]
[385061319,1757658649784,-480.0,0.00014089,2]
[385061321,1757658649793,-480.0,0.00014089,2]
[385061323,1757658649803,-480.0,0.00014089,2]
[385061325,1757658649812,-480.0,0.00014089,2]
[385061327,1757658649821,-480.0,0.00014089,2]
[385061329,1757658649830,-480.0,0.00014089,2]
[385061331,1757658649839,-480.0,0.00014089,2]
[385061333,1757658649848,-480.0,0.00014089,2]
[385061335,1757658649856,-480.0,0.00014089,2]
[385061337,1757658649866,-480.0,0.00014089,2]
[385061339,1757658649875,-356.55646905,0.00014089,2]
[385061341,1757658649884,-480.0,0.00014089,2]
[385061343,1757658649893,-480.0,0.00014089,2]
[385061345,1757658649902,-480.0,0.00014089,2]
[385061347,1757658649911,-481.31005437,0.00014089,2]
[385061349,1757658649920,-480.0,0.00014089,2]
[385061351,1757658649929,-480.0,0.00014089,2]
[385061353,1757658649938,-480.0,0.00014089,2]
[385061355,1757658649947,-480.0,0.00014089,2]
[385061357,1757658649957,-347.01706887,0.00014089,2]
[385061359,1757658649966,-3463.53,0.00014089,2]
[385061361,1757658649975,-480.0,0.00014089,2]
[385061363,1757658649984,-480.0,0.00014089,2]
[385061365,1757658649994,-613.67862645,0.00014089,2]
[385061367,1757658650004,-480.0,0.00014089,2]
[385061376,1757658650085,-480.0,0.00014089,2]
[385061378,1757658650094,-480.0,0.00014089,2]
[385061380,1757658650102,-480.0,0.00014089,2]
[385061382,1757658650111,-480.0,0.00014089,2]
[385061384,1757658650120,-480.0,0.00014089,2]
[385061386,1757658650129,-483.21652975,0.00014089,2]
[385061388,1757658650140,-480.0,0.00014089,2]
[385061390,1757658650149,-890.69,0.00014089,2]
[385061392,1757658650158,-480.0,0.00014089,2]
[385061394,1757658650167,-480.0,0.00014089,2]
[385061396,1757658650177,-480.0,0.00014089,2]
[385061398,1757658650186,-480.0,0.00014089,2]
[385061400,1757658650196,-480.0,0.00014089,2]
[385061402,1757658650205,-480.0,0.00014089,2]
[385061404,1757658650216,-480.0,0.00014089,2]
[385061406,1757658650226,-480.0,0.00014089,2]
[385061408,1757658650235,-480.0,0.00014089,2]
[385061410,1757658650244,-480.0,0.00014089,2]
[385061412,1757658650254,-209.38653475,0.00014089,2]
[385061414,1757658650264,-480.0,0.00014089,2]
[385061416,1757658650273,-486.29209323,0.00014089,2]
[385061418,1757658650282,-480.0,0.00014089,2]
[385061420,1757658650292,-480.0,0.00014089,2]
[385061422,1757658650302,-492.03621112,0.00014089,2]
[385061424,1757658650312,-480.0,0.00014089,2]
[385061426,1757658650321,-480.0,0.00014089,2]
[385061427,1757658650331,-484.91629434,0.00014089,2]
[385061429,1757658650340,-480.0,0.00014089,2]
[385061430,1757658650349,-480.0,0.00014089,2]
[385061431,1757658650358,-480.0,0.00014089,2]
[385061432,1757658650368,-480.0,0.00014089,2]
[385061433,1757658650377,-493.65732287,0.00014089,2]
[385061434,1757658650386,-480.0,0.00014089,2]
[385061435,1757658650395,-480.0,0.00014089,2]
[385061436,1757658650404,-480.0,0.00014089,2]
[385061437,1757658650414,-480.0,0.00014089,2]
[385061438,1757658650423,-493.64009434,0.00014089,2]
[385061439,1757658650431,-480.0,0.00014089,2]
[385061440,1757658650441,-369.4033403,0.00014089,2]
[385061441,1757658650454,-480.0,0.00014089,2]
[385061442,1757658650463,-480.0,0.00014089,2]
[385061443,1757658650472,-488.26606959,0.00014089,2]
[385061444,1757658650481,-480.0,0.00014089,2]
[385061445,1757658650490,-500.33430816,0.00014089,2]
[385061446,1757658650501,-480.0,0.00014089,2]
[385061447,1757658650509,-480.0,0.00014089,2]
[385061448,1757658650519,-480.0,0.00014089,2]
[385061449,1757658650528,-480.0,0.00014089,2]
[385061450,1757658650538,-1097.9,0.00014089,2]
[385061451,1757658650547,-537.70287497,0.00014089,2]
[385061452,1757658650556,-480.0,0.00014089,2]
[385061453,1757658650566,-480.0,0.00014089,2]
[385061454,1757658650575,-342.39109577,0.00014089,2]
[385061455,1757658650584,-480.0,0.00014089,2]
[385061456,1757658650593,-487.36226338,0.00014089,2]
[385061457,1757658650602,-480.0,0.00014089,2]
[385061458,1757658650613,-489.00371743,0.00014089,2]
[385061459,1757658650622,-480.0,0.00014089,2]
[385061461,1757658650632,-480.0,0.00014089,2]
[385061463,1757658650643,-480.0,0.00014089,2]
[385061465,1757658650652,-480.0,0.00014089,2]
[385061467,1757658650662,-480.0,0.00014089,2]
[385061469,1757658650672,-480.0,0.00014089,2]
[385061471,1757658650681,-480.0,0.00014089,2]
[385061474,1757658650691,-238.11094802,0.00014089,2]
[385061475,1757658650700,-480.0,0.00014089,2]
[385061477,1757658650709,-486.33078661,0.00014089,2]
[385061479,1757658650719,-480.0,0.00014089,2]
[385061481,1757658650728,-480.0,0.00014089,2]
[385061483,1757658650737,-480.0,0.00014089,2]
[385061485,1757658650746,-480.0,0.00014089,2]
[385061487,1757658650755,-480.0,0.00014089,2]
[385061489,1757658650765,-480.0,0.00014089,2]
[385061491,1757658650774,-729.0,0.00014089,2]
[385061493,1757658650784,-480.0,0.00014089,2]
[385061495,1757658650793,-480.0,0.00014089,2]
[385061497,1757658650802,-480.0,0.00014089,2]
[385061499,1757658650811,-480.0,0.00014089,2]
[385061501,1757658650821,-480.0,0.00014089,2]
[385061503,1757658650830,-480.0,0.00014089,2]
[385061505,1757658650840,-480.0,0.00014089,2]
[385061507,1757658650849,-480.0,0.00014089,2]
[385061509,1757658650858,-480.0,0.00014089,2]
[385061511,1757658650868,-480.0,0.00014089,2]
[385061513,1757658650877,-480.0,0.00014089,2]
[385061515,1757658650887,-480.0,0.00014089,2]
[385061517,1757658650896,-480.0,0.00014089,2]
[385061519,1757658650904,-388.52995406,0.00014089,2]
[385061521,1757658650914,-480.0,0.00014089,2]
[385061523,1757658650923,-480.0,0.00014089,2]
[385061525,1757658650933,-480.0,0.00014089,2]
[385061527,1757658650942,-480.0,0.00014089,2]
[385061529,1757658650951,-9702.3,0.00014089,2]
[385061531,1757658650961,-480.0,0.00014089,2]
[385061533,1757658650970,-480.0,0.00014089,2]
[385061535,1757658650980,-491.28283836,0.00014089,2]
[385061537,1757658650989,-484.08622243,0.00014089,2]
[385061539,1757658650998,-487.59034751,0.00014089,2]
[385061540,1757658651006,-480.0,0.00014089,2]
[385061542,1757658651017,-480.0,0.00014089,2]
[385061544,1757658651026,-480.0,0.00014089,2]
[385061547,1757658651036,-480.0,0.00014089,2]
[385061549,1757658651046,-480.0,0.00014089,2]
[385061551,1757658651056,-480.0,0.00014089,2]
[385061553,1757658651066,-533.07,0.00014089,2]
[385061555,1757658651075,-560.0,0.00014089,2]
[385061557,1757658651084,-480.0,0.00014089,2]
[385061559,1757658651094,-541.97,0.00014089,2]
[385061561,1757658651103,-480.0,0.00014089,2]
[385061563,1757658651112,-480.0,0.00014089,2]
[385061565,1757658651122,-276.3920233,0.00014089,2]
[385061567,1757658651131,-480.0,0.00014089,2]
[385061568,1757658651140,-480.0,0.00014089,2]
[385061570,1757658651149,-480.0,0.00014089,2]
[385061572,1757658651158,-480.0,0.00014089,2]
[385061574,1757658651167,-480.0,0.00014089,2]
[385061576,1757658651176,-480.0,0.00014089,2]
[385061578,1757658651185,-480.0,0.00014089,2]
[385061580,1757658651194,-277.15210816,0.0001409,2]
[385061582,1757658651203,-360.80570104,0.0001409,2]
[385061584,1757658651213,-480.0,0.0001409,2]
[385061586,1757658651222,-282.10423529,0.0001409,2]
[385061588,1757658651231,-555.22001808,0.0001409,2]
[385061590,1757658651239,-480.0,0.0001409,2]
[385061592,1757658651248,-480.0,0.0001409,2]
[385061601,1757658651318,-480.0,0.0001409,2]
[385061603,1757658651331,-480.0,0.0001409,2]
[385061606,1757658651347,-480.0,0.0001409,2]
[385061607,1757658651356,-480.0,0.0001409,2]
[385061609,1757658651366,-480.0,0.0001409,2]
[385061612,1757658651375,-480.0,0.0001409,2]
[385061614,1757658651384,-480.0,0.0001409,2]
[385061615,1757658651394,-480.0,0.0001409,2]
[385061617,1757658651403,-482.75418755,0.0001409,2]
[385061619,1757658651413,-480.0,0.0001409,2]
[385061621,1757658651422,-480.0,0.0001409,2]
[385061624,1757658651431,-480.0,0.0001409,2]
[385061625,1757658651442,-480.0,0.0001409,2]
[385061628,1757658651457,-487.00458251,0.0001409,2]
[385061630,1757658651466,-480.0,0.0001409,2]
[385061632,1757658651475,-480.0,0.0001409,2]
[385061633,1757658651485,-480.0,0.0001409,2]
[385061635,1757658651499,-480.0,0.0001409,2]
[385061637,1757658651510,-481.64837105,0.0001409,2]
[385061639,1757658651519,-493.67771,0.0001409,2]
[385061642,1757658651529,-490.60361849,0.0001409,2]
[385061643,1757658651539,-488.21204967,0.0001409,2]
[385061645,1757658651548,-480.0,0.0001409,2]
[385061648,1757658651559,-480.0,0.0001409,2]
[385061650,1757658651569,-480.0,0.0001409,2]
[385061652,1757658651579,-480.0,0.0001409,2]
[385061654,1757658651588,-483.27759212,0.0001409,2]
[385061656,1757658651597,-480.0,0.0001409,2]
[385061658,1757658651607,-480.0,0.0001409,2]
[385061659,1757658651617,-480.0,0.0001409,2]
[385061661,1757658651626,-480.0,0.0001409,2]
[385061663,1757658651636,-480.0,0.0001409,2]
[385061665,1757658651645,-480.0,0.0001409,2]
[385061667,1757658651655,-480.0,0.0001409,2]
[385061669,1757658651664,-480.0,0.0001409,2]
[385061671,1757658651674,-480.0,0.0001409,2]
[385061673,1757658651683,-480.0,0.0001409,2]
[385061675,1757658651692,-480.0,0.0001409,2]
[385061677,1757658651702,-480.0,0.0001409,2]
[385061679,1757658651711,-480.0,0.0001409,2]
[385061681,1757658651720,-480.0,0.0001409,2]
[385061683,1757658651729,-480.0,0.0001409,2]
[385061685,1757658651739,-482.37306411,0.0001409,2]
[385061687,1757658651748,-480.0,0.0001409,2]
[385061689,1757658651757,-482.45292013,0.0001409,2]
[385061691,1757658651767,-480.0,0.0001409,2]
[385061693,1757658651776,-1059.27,0.0001409,2]
[385061695,1757658651785,-483.23864231,0.0001409,2]
[385061697,1757658651794,-482.8575682,0.0001409,2]
[385061699,1757658651804,-480.0,0.0001409,2]
[385061701,1757658651813,-480.0,0.0001409,2]
[385061703,1757658651822,-480.0,0.0001409,2]
[385061705,1757658651833,-495.4020943,0.0001409,2]
[385061707,1757658651842,-480.0,0.0001409,2]
[385061709,1757658651851,-480.0,0.0001409,2]
[385061711,1757658651861,-480.0,0.0001409,2]
[385061713,1757658651870,-480.0,0.0001409,2]
[385061715,1757658651880,-480.0,0.0001409,2]
[385061717,1757658651890,-502.69,0.0001409,2]
[385061720,1757658651899,-480.0,0.0001409,2]
[385061722,1757658651908,-480.0,0.0001409,2]
[385061723,1757658651917,-482.20888427,0.0001409,2]
[385061725,1757658651927,-480.0,0.0001409,2]
[385061727,1757658651936,-480.0,0.0001409,2]
[385061729,1757658651945,-480.0,0.0001409,2]
[385061731,1757658651955,-646.97,0.0001409,2]
[385061733,1757658651966,-496.53524269,0.0001409,2]
[385061735,1757658651975,-480.0,0.0001409,2]
[385061737,1757658651984,-480.0,0.0001409,2]
[385061740,1757658651993,-480.0,0.0001409,2]
[385061741,1757658652003,-480.0,0.0001409,2]
[385061743,1757658652219,-480.0,0.0001409,2]
[385061745,1757658652229,-1059.27,0.00014091,2]
[385061747,1757658652238,-1059.27,0.00014091,2]
[385061749,1757658652248,-157.0,0.00014093,2]
[385061751,1757658652257,-157.0,0.00014093,2]
[385061753,1757658652267,-234.97757122,0.00014093,2]
[385061755,1757658652276,-157.0,0.00014093,2]
[385061757,1757658652285,-157.0,0.00014093,2]
[385061759,1757658652294,-500.0,0.00014093,2]
[385061761,1757658652303,-500.0,0.00014093,2]
[385061763,1757658652313,-230.03803334,0.00014093,2]
[385061765,1757658652322,-500.0,0.00014093,2]
[385061767,1757658652331,-169.20345706,0.00014093,2]
[385061769,1757658652348,-500.0,0.00014093,2]
[385061772,1757658652357,-157.0,0.00014093,2]
[385061773,1757658652367,-157.0,0.00014093,2]
[385061775,1757658652376,-193.33159042,0.00014093,2]
[385061778,1757658652388,-157.0,0.00014093,2]
[385061780,1757658652397,-302.93562152,0.00014093,2]
[385061781,1757658652406,-157.0,0.00014093,2]
[385061783,1757658652416,-2176.36067139,0.00014096,2]
[385061785,1757658652425,-151.0,0.000141,2]
[385061787,1757658652434,-151.0,0.000142,2]
[385061790,1757658652444,-2176.36067139,0.00014256,2]
[385061792,1757658652457,-480.0,0.00014262,2]
[385061793,1757658652466,-480.0,0.00014262,2]
[385061795,1757658652475,-480.0,0.00014262,2]
[385061798,1757658652484,-572.75,0.00014262,2]
[385061799,1757658652494,-480.0,0.00014262,2]
[385061801,1757658652503,-500.0,0.00014263,2]
[385061803,1757658652512,-488.11613169,0.00014263,2]
[385061805,1757658652523,-480.0,0.00014263,2]
[385061807,1757658652532,-480.0,0.00014263,2]
[385061809,1757658652542,-480.0,0.00014263,2]
[385061811,1757658652551,-592.28956643,0.00014263,2]
[385061813,1757658652561,-919.38,0.00014263,2]
[385061816,1757658652572,-757.67,0.00014263,2]
[385061818,1757658652581,-480.0,0.00014263,2]
[385061820,1757658652590,-480.0,0.00014263,2]